Cogmind - Beta 15 @@@ ROGUE MODE // 2025.09.14 @ 15:10:32 Player: unq Result: Self-destructed Performance ------------- Evolutions (7) 3500 Regions Visited (12) 2400 Robots Destroyed (163) 815 Value Destroyed (4855) 4855 Prototype IDs (46) 920 Alien Tech Used (0) 0 Bonus (410) 410 TOTAL SCORE: 12900 Bonus ------- High Alert Combat Kills 110 Aligned with FarCom 300 Cogmind --------- Core Integrity 1151/1300 Matter 300/300 Energy 4/100 System Corruption 2% Temperature Cool (0) Movement Flying (39) Location -3/Research Parts ------- > --- POWER (1) -------- (None) > --- PROPULSION (7) --- Cooled VTOL Module Cooled VTOL Module Cooled VTOL Module Nuclear Pulse Array (fused) Impulse Thruster Array > --- UTILITY (11) ----- Medium Storage Unit Enhanced Optical Array Advanced Transmission Jammer Improved Reaction Control System Cloaking Device Hacking Suite Improved Hacking Suite Advanced Hacking Suite System Shield > --- WEAPON (2) ------- Powered Hammer Chainsword > --- INVENTORY (10) --- Advanced Medium Treads Field Propulsion Drive Field Propulsion Array Graphene Brace EM Shield Authchip [Processor] Rocket Launcher Peak State ------------ > --- POWER ------------ Micro Nuclear Core > --- PROPULSION ------- Cooled VTOL Module Cooled VTOL Module Cooled VTOL Module Nuclear Pulse Array Impulse Thruster Array > --- UTILITY ---------- Medium Storage Unit Structural Scanner Enhanced Optical Array Advanced Transmission Jammer Improved Reaction Control System Hacking Suite Improved Hacking Suite Advanced Hacking Suite Advanced Hacking Suite System Shield System Shield > --- WEAPON ----------- Powered Hammer Chainsword > --- INVENTORY -------- Advanced Medium Treads Field Propulsion Drive Impulse Thruster Array Impulse Thruster Array Improved Propulsion Shielding Graphene Brace EM Shield Rocket Launcher [Rating: 106] Favorites ----------- Power Micro Nuclear Core Engine Light Ion Engine Power Core Micro Nuclear Core Propulsion Cooled VTOL Module Treads Light Treads Wheel Armored Wheel Flight Unit Cooled VTOL Module Utility Hacking Suite Device Structural Scanner Storage Large Storage Unit Processor Enhanced Optical Array Hackware Hacking Suite Protection Improved Light Armor Plating Weapon Powered Hammer Energy Gun EM Pulse Gun Energy Cannon Heavy Ion Cannon Ballistic Gun Minigun Ballistic Cannon Light Cannon Launcher Rocket Launcher Special Weapon Mining Laser Impact Weapon Powered Hammer Slashing Weapon Chainsword Build | -11 -10 -10 -10 -9 -8 -7 -6 -5 -5 -5 -4 -3 ------- Run | Yrd Mat Min Exi Min Mat Fac Fac Fac Was Fac Fac Res Slots Evolved 14 | . . . . . 4 2 2 2 . . 2 2 Power . | . . . . . . . . . . . . . Propulsion 5 | . . . . . 1 1 1 . . . 1 1 Utility 9 | . . . . . 3 1 1 2 . . 1 1 Weapon . | . . . . . . . . . . . . . Parts Attached 148 | 8 9 9 2 5 12 40 14 11 . 25 5 8 Power 12 | 1 . 2 . . 1 6 1 . . 1 . . Engine 8 | 1 . 2 . . 1 3 1 . . . . . Core 4 | . . . . . . 3 . . . 1 . . Reactor . | . . . . . . . . . . . . . Propulsion 38 | 2 . . . 4 1 13 4 3 . 8 2 1 Treads 10 | 2 . . . 2 1 5 . . . . . . Leg . | . . . . . . . . . . . . . Wheel 5 | . . . . 2 . 2 . . . 1 . . Hover . | . . . . . . . . . . . . . Flight 23 | . . . . . . 6 4 3 . 7 2 1 Utility 71 | 2 5 3 1 1 7 12 9 8 . 15 3 5 Device 19 | 2 . 3 . . 1 2 2 3 . 3 2 1 Storage 6 | . 2 . 1 . 1 . . 1 . . 1 . Processor 2 | . . . . . . 1 . . . 1 . . Hackware 26 | . . . . . 2 4 5 4 . 7 . 4 Protection 18 | . 3 . . 1 3 5 2 . . 4 . . Artifact . | . . . . . . . . . . . . . Weapon 27 | 3 4 4 1 . 3 9 . . . 1 . 2 Energy Gun 2 | 1 . . . . . 1 . . . . . . Energy Cannon 1 | . . . . . . 1 . . . . . . Ballistic Gun 10 | 2 1 2 1 . 1 3 . . . . . . Ballistic Cannon 5 | . 1 2 . . . 2 . . . . . . Launcher 3 | . . . . . 1 . . . . . . 2 Special Weapon 2 | . 2 . . . . . . . . . . . Impact Weapon 1 | . . . . . . 1 . . . . . . Slashing Weapon 3 | . . . . . 1 1 . . . 1 . . Piercing Weapon . | . . . . . . . . . . . . . Special Melee Weapon . | . . . . . . . . . . . . . Unidentified Prototypes 6 | . . . . . 1 1 2 1 . . . 1 Parts Lost 24 | . 1 . . . . 7 1 . . 6 4 5 Power 4 | . . . . . . 2 . . . . 1 1 Propulsion 5 | . . . . . . 4 1 . . . . . Utility 13 | . . . . . . 1 . . . 5 3 4 Weapon 2 | . 1 . . . . . . . . 1 . . Highest Loss Streak 4 | . 1 . . . . 2 1 . . 3 2 4 To Critical Strikes 1 | . . . . . . 1 . . . . . . Average Backups 9 | 2 9 15 14 14 13 11 4 5 7 9 9 8 Power . | . . . . . . . . . 1 . . . Propulsion 2 | . 1 3 3 3 1 3 1 1 1 2 1 3 Utility 4 | . 4 6 7 6 6 3 2 2 4 5 5 3 Weapon 2 | 1 4 5 4 5 5 3 1 1 1 . 1 1 Tool/Special . | . . . . . . . . . . . . . Unused Backups 41 | . 5 1 1 2 4 11 3 . . 4 3 7 Power 2 | . . . . . . 2 . . . . . . Propulsion 16 | . 2 . . 1 2 3 2 . . 1 1 4 Utility 20 | . 3 . . 1 1 6 1 . . 3 2 3 Weapon 3 | . . 1 1 . 1 . . . . . . . Tool/Special . | . . . . . . . . . . . . . Average Slot Usage (%) 92 | . 99 99 99 85 82 94 98 90 88 89 88 88 Engine 4 | . 14 14 14 14 9 3 . . . . . . Core 3 | . . . . . . 3 6 5 5 5 5 3 Treads 8 | . 27 28 28 25 9 10 . . . . . . Wheel 4 | . . . . 2 18 11 . . . . . . Flight 12 | . . . . . . 7 32 20 17 19 21 23 Device 10 | . 14 10 14 8 8 8 11 13 11 9 10 14 Storage 6 | . 11 14 14 14 9 5 . . 5 5 5 4 Hackware 18 | . . . . . 7 16 25 30 35 34 23 25 Protection 5 | . 1 3 . 5 10 8 7 5 . . 5 . Ballistic Gun 5 | . 16 2 27 14 10 6 . . . . . . Ballistic Cannon 2 | . 5 25 . . . . . . . . . . Impact Weapon 2 | . . . . . . 1 6 2 5 4 5 3 Slashing Weapon 3 | . . . . . . 4 5 5 5 5 5 4 Peak Build Rating 106 | 9 9 14 24 27 44 48 58 71 69 80 88 106 Average Rating 48 | 4 8 9 14 24 39 39 53 67 69 73 84 102 On Entrance 39 | . 9 9 14 24 27 36 46 58 69 69 74 82 Naked Turns . | . . . . . . . . . . . . . Heaviest Build 59 | 10 29 34 34 36 59 52 21 24 24 29 33 29 Greatest Support 50 | 40 40 40 40 40 24 48 28 32 31 34 42 50 Greatest Overweight (x) 3 | . . . . 1 2 3 . . . 1 . . Average Overweight (x) . | . . . . . 1 . . . . . . . Largest Inventory Capacity 15 | 5 15 15 15 15 15 15 5 10 10 10 10 10 Average Capacity 10 | 5 10 15 15 15 15 12 5 5 10 10 10 10 Most Carried 15 | 4 15 15 15 15 15 15 5 7 7 10 10 10 Average Carried 10 | 2 9 14 14 14 14 12 4 5 7 9 9 9 Final Capacity 15 | 5 15 15 15 15 15 5 5 10 10 10 10 10 Final Carried 15 | 3 15 15 15 15 15 5 5 7 7 10 7 8 Class Distribution -------------------- 27% | Mutant 22% | Hacker-Sprinter 18% | Wizard-Sprinter 17% | Hacker-Mutant 5% | Hacker-Ninja Dominant Class ---------------- Mutant | -10/Materials Mutant | -10/Mines Mutant | -10/Exiles Mutant | -9/Mines Mutant | -8/Materials Hacker-Mutant | -7/Factory Hacker-Sprinter | -6/Factory Hacker-Sprinter | -5/Factory Wizard-Sprinter | -5/Waste Wizard-Sprinter | -5/Factory Hacker-Ninja | -4/Factory Wizard-Ninja | -3/Research Resources | -11 -10 -10 -10 -9 -8 -7 -6 -5 -5 -5 -4 -3 ----------- Run | Yrd Mat Min Exi Min Mat Fac Fac Fac Was Fac Fac Res Matter Collected 5463 | 284 373 739 . 80 209 1907 307 344 . 889 156 175 Remotely . | . . . . . . . . . . . . . Salvage Created 5571 | 123 406 59 . 100 848 1819 347 289 . 1037 422 121 Parts 265 | 15 37 . . 5 56 92 8 9 . 37 5 1 Haulers Intercepted 3 | . . . . . 1 1 . . . 1 . . Recyclers Shooed 3 | . . . . . . 1 1 . . 1 . . Parts Field Recycled . | . . . . . . . . . . . . . Retrieved Matter . | . . . . . . . . . . . . . Parts Self-Destructed . | . . . . . . . . . . . . . Prevented . | . . . . . . . . . . . . . Kills | -11 -10 -10 -10 -9 -8 -7 -6 -5 -5 -5 -4 -3 ------- Run | Yrd Mat Min Exi Min Mat Fac Fac Fac Was Fac Fac Res Combat Hostiles Destroyed 104 | . 11 11 . 2 18 32 6 6 . 16 2 . Melee 13 | . . . . . . 4 2 . . 5 2 . Guns 40 | . 6 . . 2 18 14 . . . . . . Cannons 27 | . 5 11 . . . 11 . . . . . . AOE 24 | . . . . . . 3 4 6 . 11 . . Classes Destroyed 16 | 3 4 1 . 1 4 2 1 . . . . . Worker 13 | 1 . . . . . 3 1 2 . 4 2 . Builder 5 | . . . . . 2 3 . . . . . . Tunneler 8 | 3 1 . . . . . . 1 . 2 1 . Hauler 3 | . . . . . 1 1 . . . 1 . . Recycler 12 | 1 . . . . . 5 1 1 . 3 1 . Operator 3 | . 1 . . . . 1 . . . . 1 . Drone 1 | . . . . . . . 1 . . . . . Watcher 26 | . 3 . . . 4 1 3 2 . 8 2 3 Swarmer 35 | . 3 . . . 6 3 4 4 . 15 . . Grunt 26 | . 8 . . 1 6 11 . . . . . . Brawler 3 | . . . . 1 . 2 . . . . . . Protector 1 | . . . . . . 1 . . . . . . Sentry 11 | . . . . . 5 6 . . . . . . Hunter 1 | . . . . . 1 . . . . . . . Programmer 16 | . . . . . . 9 2 2 . 1 2 . Assembled 11 | . . 11 . . . . . . . . . . Best Kill Streak 8 | 2 5 5 . 2 4 6 4 5 . 8 3 1 Combat Bots Only 8 | . 5 5 . 2 4 5 4 4 . 8 2 . Max Kills in Single Turn 3 | 1 1 2 . 1 2 1 2 3 . 3 1 1 Gunslinging . | . . . . . . . . . . . . . Exploded 3 | . . . . . . 1 2 3 . 3 . . Melee 1 | . . . . . . 1 1 . . 1 1 . Uniques/NPCs Destroyed . | . . . . . . . . . . . . . Combat | -11 -10 -10 -10 -9 -8 -7 -6 -5 -5 -5 -4 -3 -------- Run | Yrd Mat Min Exi Min Mat Fac Fac Fac Was Fac Fac Res Hostile Shots Fired 831 | . 35 35 . 3 49 383 55 28 . 110 66 67 Missed 342 | . 12 10 . 1 15 132 26 17 . 48 34 47 Hits 489 | . 23 25 . 2 34 251 29 11 . 62 32 20 Melee 9 | . . 4 . . . 5 . . . . . . Projectile 480 | . 23 21 . 2 34 246 29 11 . 62 32 20 AOE 4 | . . . . . . 1 . . . . 3 . Critical Strikes 15 | . . . . . . 5 2 1 . 3 2 2 Actively Blocked 1 | . . . . . . . . . . . . 1 Part Disruptions 2 | . . 1 . . . 1 . . . . . . Damage Taken 7102 | . 249 378 . 24 337 3229 295 169 . 1217 845 359 Core 924 | . 24 72 . 12 50 165 44 13 . 222 173 149 Absorbed by Shields . | . . . . . . . . . . . . . Redirected to Shielding 335 | . 9 . . . . . . . . 184 99 43 Ignored by Resistances 254 | . . . . . . . 32 45 . 57 120 . Regen/Repaired (Parts) 845 | . 39 . . . 107 119 75 . . 362 71 72 Core Remaining (%) 82 | 100 . . . 56 90 76 94 . . 76 84 . Volleys Fired 229 | 8 56 27 . . 2 106 5 15 . 5 . 5 Largest 2 | 2 2 2 . . 1 2 1 1 . 1 . 1 Hottest 120 | 40 120 60 . . 33 90 33 33 . 33 . 33 Shots Fired 493 | 16 93 54 . 5 77 218 5 15 . 5 . 5 Gun 286 | 16 54 . . 5 76 135 . . . . . . Cannon 147 | . 18 54 . . . 75 . . . . . . Launcher 39 | . . . . . 1 8 5 15 . 5 . 5 Special 21 | . 21 . . . . . . . . . . . Kinetic 399 | 16 65 54 . 5 76 183 . . . . . . Thermal 48 | . 21 . . . . 27 . . . . . . Explosive 39 | . . . . . 1 8 5 15 . 5 . 5 Electromagnetic 7 | . 7 . . . . . . . . . . . Robot Hit Streak 17 | 8 9 7 . 3 10 17 3 2 . 4 . . Robot Miss Streak 10 | 1 5 3 . 2 4 10 1 3 . 1 . . Penetration Max 1 | . . . . . 1 . . . . . . . Secondary Targets 3 | . 2 . . . . 1 . . . . . . Max Gunslinging Chain 1 | . 1 . . . . 1 . . . . . . Autonomous 97 | . . . . 5 73 19 . . . . . . Shots Hit Robots 419 | 12 37 30 . 3 61 188 19 10 . 35 21 3 Core Hits 213 | 8 21 16 . 2 29 91 9 12 . 24 1 . Critical Kills 1 | . . . . . . . . . . 1 . . Critical Parts Destroyed 17 | 1 . . . . 1 1 4 1 . 6 2 1 Critical Strikes 24 | 1 . . . . 1 7 4 1 . 7 2 1 Destroy 2 | 1 . . . . 1 . . . . . . . Blast 3 | . . . . . . 3 . . . . . . Smash 16 | . . . . . . 1 4 1 . 7 2 1 Sever 3 | . . . . . . 3 . . . . . . Melee Attacks 572 | . . . . . 4 125 101 55 . 178 67 42 Impact 386 | . . . . . . 58 73 24 . 140 56 35 Slashing 186 | . . . . . 4 67 28 31 . 38 11 7 Piercing . | . . . . . . . . . . . . . Sneak Attacks 36 | . . . . . . 8 3 3 . 12 8 2 Combat Hostiles . | . . . . . . . . . . . . . Follow-up Attacks 11 | . . . . . . . 4 . . 6 1 . Damage Inflicted 15136 | 110 522 546 . 94 1851 5235 1150 1193 . 2848 1379 208 Guns 4513 | 110 302 . . 94 1850 2157 . . . . . . Cannons 2025 | . 213 546 . . . 1266 . . . . . . Explosions 2409 | . . . . . . 515 331 770 . 793 . . Melee 6100 | . . . . . . 1216 819 423 . 2055 1379 208 Ramming 89 | . 7 . . . 1 81 . . . . . . Kinetic 5987 | 110 492 546 . 94 1850 2895 . . . . . . Thermal 528 | . . . . . . 528 . . . . . . Explosive 2409 | . . . . . . 515 331 770 . 793 . . Electromagnetic 23 | . 23 . . . . . . . . . . . Impact 4543 | . . . . . . 63 720 291 . 1914 1347 208 Slashing 1557 | . . . . . . 1153 99 132 . 141 32 . Piercing . | . . . . . . . . . . . . . Highest Corruption 14 | . . . . . 2 14 2 5 10 10 5 2 Average Corruption 5 | . . . . . 2 5 2 5 8 8 3 1 Corruption Purged 10 | . . . . . . . . . . 10 . . Corruption Blocked . | . . . . . . . . . . . . . Effects 230 | . . . . . 9 120 23 10 3 57 8 . Message Errors 64 | . . . . . . 27 10 4 1 19 3 . Matter Fused 47 | . . . . . 2 25 6 2 . 12 . . Heat Flow Errors 38 | . . . . . 2 22 3 2 . 8 1 . Energy Discharges 26 | . . . . . 1 17 . 1 1 4 2 . Parts Fused 6 | . . . . . . 3 1 . . 1 1 . Data Loss (minor) 28 | . . . . . 1 18 1 . . 7 1 . Data Loss (major) 6 | . . . . . . 2 2 1 . 1 . . Misfires 4 | . . . . . 2 2 . . . . . . Alerts 3 | . . . . . 1 . . . . 2 . . Misdirections 6 | . . . . . . 2 . . 1 3 . . Weapon Failures 2 | . . . . . . 2 . . . . . . Overload Shots . | . . . . . . . . . . . . . Overflow Damage 2665 | . . 14 . . . 308 414 209 . 917 674 129 Projectiles 100 | . . 14 . . . 42 . . . . 44 . Explosions 74 | . . . . . . 19 . 3 . 52 . . Melee 2491 | . . . . . . 247 414 206 . 865 630 129 Knockbacks 35 | . . 9 . . . 5 4 2 . 7 8 . Impact 20 | . . . . . . 1 3 2 . 7 7 . Kinetic 13 | . . 9 . . . 4 . . . . . . Secondary 2 | . . . . . . . 1 . . . 1 . Self-Inflicted Damage 268 | . . . . . . 236 12 . . 20 . . Shots 8 | . . . . . . 6 1 . . 1 . . Rammed 2 | . . . . . 1 1 . . . . . . Targets Rammed 3 | . 1 . . . 1 1 . . . . . . Kicked . | . . . . . . . . . . . . . Crushed 1 | . 1 . . . . . . . . . . . Highest Temperature 464 | . 82 190 . . 213 464 300 98 . 271 278 21 Average Temperature 65 | . 24 65 . . 106 116 34 41 . 82 117 16 Received Heat Transfer 1027 | . 102 100 . 12 72 594 36 9 . 27 54 21 Effects 21 | . . . . . . 16 5 . . . . . Shutdowns 3 | . . . . . . 3 . . . . . . Energy Bleed 5 | . . . . . . 1 4 . . . . . Interference 6 | . . . . . . 6 . . . . . . Short Circuit 2 | . . . . . . 1 1 . . . . . Damage (minor) 1 | . . . . . . 1 . . . . . . Damage (major) 4 | . . . . . . 4 . . . . . . Siege Activations . | . . . . . . . . . . . . . Martial Activations . | . . . . . . . . . . . . . Shielding Activations . | . . . . . . . . . . . . . Robots Disrupted . | . . . . . . . . . . . . . Combat Hostiles . | . . . . . . . . . . . . . Robots Corrupted 21 | . . . . . . 1 3 4 . 7 4 2 Combat Hostiles . | . . . . . . . . . . . . . Parts Fried 43 | . . . . . . 1 8 5 . 20 7 2 Impact Corruptions 69 | . . . . . . 2 15 6 . 25 18 3 Robots Melted . | . . . . . . . . . . . . . Combat Hostiles . | . . . . . . . . . . . . . Parts Melted 2 | . . . . . . 1 . . . . 1 . Heat Transferred 666 | . . . . . . 666 . . . . . . Parts Sabotaged . | . . . . . . . . . . . . . Parts Stolen . | . . . . . . . . . . . . . Parts Stripped . | . . . . . . . . . . . . . Power Chain Reactions . | . . . . . . . . . . . . . Alert | -11 -10 -10 -10 -9 -8 -7 -6 -5 -5 -5 -4 -3 ------- Run | Yrd Mat Min Exi Min Mat Fac Fac Fac Was Fac Fac Res Maximum Alert Level 2 | . . . . . 1 2 2 1 . 2 . . Low Security (%) 77 | 100 100 100 . 100 97 48 87 76 100 74 100 100 Level 1 13 | . . . . . 2 19 12 23 . 24 . . Level 2 8 | . . . . . . 32 . . . . . . Level 3 . | . . . . . . . . . . . . . Level 4 . | . . . . . . . . . . . . . Level 5 . | . . . . . . . . . . . . . High Security . | . . . . . . . . . . . . . Max Security . | . . . . . . . . . . . . . Peak Influence 650 | 5 106 . . 58 258 650 408 280 10 466 181 110 Initial 308 | . . . . . . 38 308 18 10 . 105 92 Average 114 | 1 23 . . 12 57 270 59 66 4 100 44 23 Influence Increases 6062 | 25 398 . . 58 683 1316 585 606 . 1564 533 294 Destroy 0b10 Robot/C 1840 | . 220 . . 40 360 620 120 120 . 320 40 . Destroy 0b10 Robot/NC 355 | 25 25 . . . 35 75 25 30 . 90 35 15 Destroy Leader 508 | . 56 . . 10 100 204 36 24 . 58 14 6 Successful Hack 397 | . 65 . . . 51 45 63 18 . 42 35 78 Disable Machine 225 | . . . . . 60 120 15 . . 30 . . Destroy Structure 832 | . 17 . . 8 47 102 86 174 . 244 64 90 Partial Spotted 450 | . . . . . . 45 75 15 . 180 75 60 Lose Combat Pursuer 1455 | . 15 . . . 30 105 165 225 . 600 270 45 Influence Decreases 6062 | 25 398 . . 58 598 772 1175 614 31 1349 571 471 Entered New Map 605 | . . . . . . 47 321 21 21 . 110 85 Time Decay 3382 | 25 356 . . 58 412 453 425 349 10 659 359 276 Search Patrol Dispatched 150 | . . . . . . . . . . 150 . . Lost Part 221 | . 10 . . . . 70 10 . . 60 40 31 Lost Ally 81 | . . . . . . 40 21 10 . 10 . . Purge Threat 1623 | . 32 . . . 186 162 398 234 . 470 62 79 Squads Dispatched 68 | . 2 . . . 1 23 9 6 . 15 6 6 Investigation 23 | . 1 . . . 1 5 4 3 . 6 . 3 Extermination 37 | . . . . . . 13 5 3 . 9 4 3 Reinforcement 6 | . 1 . . . . 3 . . . . 2 . Assault 2 | . . . . . . 2 . . . . . . Garrison . | . . . . . . . . . . . . . Intercept . | . . . . . . . . . . . . . Searches Triggered 1 | . . . . . . . . . . 1 . . Construction Impeded 1 | . . . . . . . . . . . 1 . Haulers Reinforced . | . . . . . . . . . . . . . Active Scanning Responses . | . . . . . . . . . . . . . Cargo Convoy Interrupts 1 | . . . . . . 1 . . . . . . Stealth | -11 -10 -10 -10 -9 -8 -7 -6 -5 -5 -5 -4 -3 --------- Run | Yrd Mat Min Exi Min Mat Fac Fac Fac Was Fac Fac Res Distress Signals 23 | . 1 . . . 4 4 3 7 . 2 . 2 Communications Jammed 1 | . . . . . . . . 1 . . . . Distress Signals 1 | . . . . . . . . 1 . . . . Times Spotted 297 | . 17 13 . 2 25 61 27 21 6 76 31 18 Peak Tracking Total 13 | . 3 4 . 2 7 5 5 5 6 11 7 13 Tactical Retreats 59 | . 1 1 . . 2 7 8 10 . 19 9 2 Traps | -11 -10 -10 -10 -9 -8 -7 -6 -5 -5 -5 -4 -3 ------- Run | Yrd Mat Min Exi Min Mat Fac Fac Fac Was Fac Fac Res Traps Triggered 17 | . . . . . 1 5 4 2 . 5 . . Indirectly . | . . . . . . . . . . . . . Trap Hack Attempts . | . . . . . . . . . . . . . Triggered . | . . . . . . . . . . . . . Disarmed . | . . . . . . . . . . . . . Reprogrammed . | . . . . . . . . . . . . . Reused . | . . . . . . . . . . . . . Traps Extracted . | . . . . . . . . . . . . . Installed . | . . . . . . . . . . . . . Triggered . | . . . . . . . . . . . . . Machines | -11 -10 -10 -10 -9 -8 -7 -6 -5 -5 -5 -4 -3 ---------- Run | Yrd Mat Min Exi Min Mat Fac Fac Fac Was Fac Fac Res Machines Disabled 16 | . 1 . . . 4 8 1 . . 2 . . Max in Single Turn 1 | . 1 . . . 1 1 1 . . 1 . . Garrison Access 12 | . . . . . . 2 3 2 . 4 . 1 Machines Repaired . | . . . . . . . . . . . . . Machines Dismantled . | . . . . . . . . . . . . . Machines Sabotaged . | . . . . . . . . . . . . . Overloaded Fab Kills . | . . . . . . . . . . . . . Hacking | -11 -10 -10 -10 -9 -8 -7 -6 -5 -5 -5 -4 -3 --------- Run | Yrd Mat Min Exi Min Mat Fac Fac Fac Was Fac Fac Res Machines Accessed 168 | . 9 1 2 1 15 28 36 13 . 36 10 17 Terminals 80 | . 7 . . . 11 13 17 4 . 17 4 7 Fabricators 16 | . . . . . . 3 4 3 . 4 . 2 Repair Stations 14 | . 1 . . . 1 2 2 . . 5 2 1 Recycling Units 28 | . 1 . . . 1 5 6 3 . 4 3 5 Scanalyzers 13 | . . . . . 2 2 4 1 . 2 1 1 Garrison Access 13 | . . . . . . 3 3 2 . 4 . 1 Total Hacks 568 | . 33 1 5 1 58 68 133 42 . 146 35 46 Successful 372 | . 20 1 5 1 37 38 75 27 . 104 29 35 Failed 193 | . 12 . . . 21 30 57 15 . 41 6 11 Catastrophic 27 | . 2 . . . 2 6 6 . . 7 2 2 Database Lockouts 3 | . 1 . . . . . 1 . . 1 . . Manual 209 | . 22 . 1 . 30 25 48 9 . 47 12 15 Terminals 323 | . 30 . . . 40 38 81 14 . 79 16 25 Fabricators 56 | . . . . . . 11 13 12 . 14 . 6 Repair Stations 55 | . 2 . . . 2 6 7 . . 28 6 4 Recycling Units 49 | . 1 . . . 2 6 10 5 . 13 4 8 Scanalyzers 62 | . . . . . 14 4 18 7 . 8 9 2 Garrison Access 16 | . . . . . . 3 4 4 . 4 . 1 Terminal Hacks 139 | . 12 1 5 1 17 10 32 4 . 36 7 14 Record 6 | . . . 4 . . . . . . 1 . 1 Part Schematic 8 | . 1 . . . 2 1 3 . . 1 . . Robot Schematic 1 | . . . . . . . 1 . . . . . Robot Analysis 3 | . . . . . 2 1 . . . . . . Prototype ID Bank 8 | . 2 . . . 2 1 2 . . 1 . . Open Door 3 | . . 1 . 1 . . . 1 . . . . Open DSF 1 | . . . . . . 1 . . . . . . Level Access Points 4 | . . . . . . . 1 . . 1 1 1 Branch Access Points 5 | . 1 . . . 1 1 1 . . 1 . . Emergency Access Points 1 | . . . . . . . . . . . . 1 Terminal Index 3 | . 1 . . . . . 1 . . 1 . . Fabricator Index 2 | . . . . . . . 1 . . 1 . . Repair Station Index 1 | . . . . . . . . . . 1 . . Scanalyzer Index 3 | . . . . . 1 . 1 . . 1 . . Garrison Index 1 | . . . . . . . . . . . . 1 Alert Level 2 | . . . . . . . 1 . . 1 . . Unreport Threat 22 | . 2 . . . 3 2 5 2 . 5 2 1 Locate Traps 22 | . 1 . . . 3 2 5 . . 5 2 4 Maintenance Status 1 | . . . . . . . . . . . 1 . Recall Investigation 17 | . 1 . . . 1 1 5 1 . 6 . 2 Recall Extermination 8 | . . . . . . . 2 . . 5 . 1 Recall Reinforcements 3 | . . . . . . . . . . 2 . 1 Recall Assault 1 | . . . . . . . 1 . . . . . Hauler Manifests 4 | . 2 . . . 1 . . . . . 1 . Registered Components 1 | . . . . . . . . . . 1 . . Registered Prototypes 2 | . . . . . . . 1 . . 1 . . Zone Layout 5 | . 1 . . . 1 . 1 . . 1 . 1 Proto ID Catalog 1 | . . . 1 . . . . . . . . . Fabricator Hacks 38 | . . . . . . 7 9 6 . 11 . 5 Network Status 6 | . . . . . . 1 2 . . 2 . 1 Load Schematic 22 | . . . . . . 4 5 4 . 6 . 3 Build 10 | . . . . . . 2 2 2 . 3 . 1 Repair Station Hacks 48 | . 2 . . . 2 5 4 . . 26 6 3 Scan Component 26 | . 1 . . . 1 3 2 . . 14 3 2 Repair 22 | . 1 . . . 1 2 2 . . 12 3 1 Recycling Unit Hacks 29 | . 1 . . . 1 3 6 3 . 6 3 6 Process 2 | . . . . . . . . . . 1 . 1 Retrieve Matter 1 | . . . . . . . . . . 1 . . Retrieve Components 26 | . 1 . . . 1 3 6 3 . 4 3 5 Scanalyzer 50 | . . . . . 13 2 9 7 . 8 9 2 Insert Component 24 | . . . . . 6 1 5 3 . 4 4 1 Analyze 26 | . . . . . 7 1 4 4 . 4 5 1 Garrison Access Hacks 12 | . . . . . . 2 3 2 . 4 . 1 Seal Access 12 | . . . . . . 2 3 2 . 4 . 1 Unauthorized Hacks 56 | . 5 . . . 4 9 12 5 . 13 4 4 Terminals 45 | . 5 . . . 4 7 9 3 . 10 4 3 Assimilate 11 | . . . . . . 1 5 1 . 4 . . Botnet 27 | . 4 . . . 3 5 3 2 . 5 3 2 Operators 7 | . 1 . . . 1 1 1 . . 1 1 1 Fabricators 11 | . . . . . . 2 3 2 . 3 . 1 Recompile 11 | . . . . . . 2 3 2 . 3 . 1 Repair Stations . | . . . . . . . . . . . . . Recycling Units . | . . . . . . . . . . . . . Scanalyzers . | . . . . . . . . . . . . . Garrison Access . | . . . . . . . . . . . . . Data Cores Recovered . | . . . . . . . . . . . . . Used . | . . . . . . . . . . . . . Hacking Detections 114 | . 7 . . . 14 21 25 6 . 24 6 11 Full Trace Events 10 | . 1 . . . 1 2 1 1 . 2 . 2 Feedback Events 1 | . . . . . . 1 . . . . . . Hackware Fried 1 | . . . . . . 1 . . . . . . Feedback Blocked 1 | . . . . . . . 1 . . . . . Robot Schematics Acquired 1 | . . . . . . . 1 . . . . . Robots Built . | . . . . . . . . . . . . . Authchips . | . . . . . . . . . . . . . Time . | . . . . . . . . . . . . . Total Robot Build Rating . | . . . . . . . . . . . . . Part Schematics Acquired 27 | . 1 . . . 7 2 4 3 . 5 4 1 Parts Built 12 | . . . . . . 4 2 2 . 3 . 1 Authchips 9 | . . . . . . 1 2 2 . 3 . 1 Time 527 | . . . . . . 51 134 64 . 243 . 35 Total Part Build Rating 39 | . . . . . . 8 8 6 . 11 . 6 Parts Repaired 22 | . 1 . . . 1 2 2 . . 12 3 1 Time 690 | . 26 . . . 44 51 48 . . 428 73 20 Parts Recycled . | . . . . . . . . . . . . . Recycled Matter . | . . . . . . . . . . . . . Retrieved Matter . | . . . . . . . . . . . . . Retrieved Components 76 | . 2 . . . 10 25 4 7 . 15 5 8 Parts Scanalyzed 20 | . . . . . 5 1 2 3 . 4 4 1 Part Schematics Acquired 20 | . . . . . 5 1 2 3 . 4 4 1 Parts Damaged 4 | . . . . . . . 2 . . 2 . . Bothacking | -11 -10 -10 -10 -9 -8 -7 -6 -5 -5 -5 -4 -3 ------------ Run | Yrd Mat Min Exi Min Mat Fac Fac Fac Was Fac Fac Res Used RIF Installer . | . . . . . . . . . . . . . Robots Hacked . | . . . . . . . . . . . . . Non-combat . | . . . . . . . . . . . . . Combat . | . . . . . . . . . . . . . Robot Hacks Applied . | . . . . . . . . . . . . . Relay Couplers Released . | . . . . . . . . . . . . . Fabnet Peak Effective % . | . . . . . . . . . . . . . Robots Rewired . | . . . . . . . . . . . . . Allies Hacked 1 | . . . . . . . . 1 . . . . Hacks Repelled . | . . . . . . . . . . . . . Allies | -11 -10 -10 -10 -9 -8 -7 -6 -5 -5 -5 -4 -3 -------- Run | Yrd Mat Min Exi Min Mat Fac Fac Fac Was Fac Fac Res Total Allies 8 | . . . . . . . 4 1 . 3 . . Largest Group 1 | . . . . . . . 1 1 . 1 . . Highest-Rated Group 26 | . . . . . . . 26 26 . 26 . . Highest-Rated Ally 26 | . . . . . . . 26 26 . 26 . . Total Orders 23 | . . . . . 3 7 6 7 . . . . STAY 7 | . . . . . . 2 3 2 . . . . FOLLOW 3 | . . . . . . . 2 1 . . . . EXPLORE 9 | . . . . . 2 3 1 3 . . . . RETURN 4 | . . . . . 1 2 . 1 . . . . Ally Attacks 14 | . . . . . 7 7 . . . . . . Total Damage . | . . . . . . . . . . . . . Kills . | . . . . . . . . . . . . . Allies Corrupted . | . . . . . . . . . . . . . Allies Melted . | . . . . . . . . . . . . . Intel | -11 -10 -10 -10 -9 -8 -7 -6 -5 -5 -5 -4 -3 ------- Run | Yrd Mat Min Exi Min Mat Fac Fac Fac Was Fac Fac Res Active Infowar (turns) 20097 | 19 1550 1120 717 180 1711 5509 2249 1697 47 3213 1249 836 Optics 2092 | . . . . . . . . . . 7 1249 836 Terrain 250 | 14 236 . . . . . . . . . . . Structural 16724 | . . 128 . 180 1711 5509 2246 1694 47 3147 1245 817 Seismic 3219 | 19 1491 992 717 . . . . . . . . . Triangulation 58 | . . . . . . . . 58 . . . . Cloaking 303 | . . . . . . . . . . . . 303 Jamming 1941 | . . . . . . 46 563 560 . 724 26 22 Robot Analysis Total 3 | . . . . . 2 1 . . . . . . Derelict Logs Recovered 1 | . . 1 . . . . . . . . . . Drone Launches 38 | . . . . . 16 18 2 2 . . . . Drone Recoveries 18 | . . . . . 9 9 . . . . . . Exploration | -11 -10 -10 -10 -9 -8 -7 -6 -5 -5 -5 -4 -3 ------------- Run | Yrd Mat Min Exi Min Mat Fac Fac Fac Was Fac Fac Res Turns Passed 22308 | 167 1720 1461 717 303 1856 5865 2356 1697 47 4034 1249 836 Spaces Moved 27458 | 84 823 808 444 188 1307 5102 4953 2451 147 7096 2521 1534 Core 5 | 5 . . . . . . . . . . . . Treads 2821 | 79 823 808 444 156 . 511 . . . . . . Legs . | . . . . . . . . . . . . . Wheels 3416 | . . . . 32 1307 2075 . . . 2 . . Hover . | . . . . . . . . . . . . . Flight 21216 | . . . . . . 2516 4953 2451 147 7094 2521 1534 Fastest Speed 15 | 50 160 160 160 105 105 24 24 20 32 17 21 15 Average Speed 54 | 153 160 160 160 150 118 81 24 29 32 30 27 30 Slowest Speed 245 | 160 160 160 160 160 120 245 28 32 32 115 28 39 Overloaded Moves 225 | . . . . . . 32 . 13 . 125 20 35 Propulsion Burnouts . | . . . . . . . . . . . . . Robots Hopped 126 | . . . . . . 21 18 11 . 61 9 6 Potential Cave-ins . | . . . . . . . . . . . . . Cave-ins Triggered . | . . . . . . . . . . . . . Exploration Rate (%) 68 | 7 96 96 83 40 96 80 81 43 91 88 46 45 Regions Visited 12 Branch Regions 3 Pre-discovered Areas 3 | . . 2 1 . . . . . . . . . Known Exits Taken 4 | . 1 . . . . . 1 . . 1 1 . Unknown Exits Taken 6 | 1 . 1 1 1 1 1 . . . . . . Scrap Searched 4 | . . 1 . 3 . . . . . . . . Spaces Dug 420 | . 10 . . . 12 80 62 64 . 98 32 62 Terrain Destroyed 671 | . 19 . . 10 57 106 118 125 . 120 32 84 Melee 348 | . . . . . 4 80 62 41 . 98 32 31 Projectile 90 | . 19 . . 10 45 16 . . . . . . AOE 232 | . . . . . 8 9 56 84 . 22 . 53 Terrain Rammed 1 | . . . . . . 1 . . . . . . Walls Destroyed 1 | . . . . . . 1 . . . . . . Machines Disabled . | . . . . . . . . . . . . . Actions | -11 -10 -10 -10 -9 -8 -7 -6 -5 -5 -5 -4 -3 --------- Run | Yrd Mat Min Exi Min Mat Fac Fac Fac Was Fac Fac Res Total 33547 | 104 1089 917 453 208 1610 6419 5899 3308 146 8610 2956 1828 Wait 4765 | . 156 40 . 6 244 893 798 762 . 1275 360 231 Move 27206 | 83 822 807 443 187 1306 5063 4918 2431 146 6976 2502 1522 Hop 115 | . . . . . . 17 16 9 . 58 9 6 Pick Up 146 | 4 21 7 3 3 13 36 11 5 . 27 9 7 Fast Attach 94 | 6 4 2 . . 3 29 11 11 . 21 3 4 Attach 72 | 1 . 1 1 . 10 24 7 4 . 12 5 7 Detach 34 | . . . . . 4 11 4 5 . 6 . 4 Swap 148 | 2 16 23 1 6 7 32 12 5 . 37 4 3 Drop 170 | . 13 10 5 6 16 64 13 11 . 20 8 4 Fire 229 | 8 56 27 . . 2 106 5 15 . 5 . 5 Melee 491 | . . . . . 4 119 84 50 . 143 56 35 Ram 1 | . . . . . . 1 . . . . . . Kick . | . . . . . . . . . . . . . Crush 3 | . 1 . . . 1 1 . . . . . . Escape Stasis 73 | . . . . . . 23 20 . . 30 . . Rewire . | . . . . . . . . . . . . . Trap . | . . . . . . . . . . . . . Miscellaneous . | . . . . . . . . . . . . . Route ------- -11/Scrapyard -10/Materials (discovered 5 exits: [*Mat x3] / *Min / [*Sub]) -10/Mines (discovered 4 exits: [*Mat x2] / *Exi / [*Sub]) -10/Exiles -9/Mines -8/Materials (discovered 3 exits: *Fac x3) -7/Factory (discovered 3 exits: *Fac / *Low x2) -6/Factory (discovered 6 exits: *Fac x4 / *Low x2) -5/Factory (discovered 3 exits: *Fac / *Ext x2) -5/Waste -5/Factory (discovered 8 exits: *Fac x4 / *Upp x2 / *Ext x2) -4/Factory (discovered 6 exits: *Res x4 / [*Upp x2]) -3/Research (discovered 5 exits: *Res x3 / [*Qua x2]) History --------- Turn | Location | Event 3 | -11/Scrapyard | Discovered new exit (range 15) 168 | -11/Scrapyard | Entered Materials 329 | -10/Materials | Build established: Mutant 531 | -10/Materials | Discovered new exit (range 12) 737 | -10/Materials | Repaired Lgt. Treads 756 | -10/Materials | Discovered new exit (range 9) 831 | -10/Materials | Discovered new exit (range 11) 1191 | -10/Materials | Discovered new exit (range 8) 1197 | -10/Materials | Central database locked down 1255 | -10/Materials | Identified exit to Mines 1888 | -10/Materials | Entered Mines 1889 | -10/Mines | Assembled infested the area 1897 | -10/Mines | Learned location of Storage (-9) 2446 | -10/Mines | Received a Rocket Launcher from a helpful Derelict 2727 | -10/Mines | Learned location of Zion (-6) 2743 | -10/Mines | A weapon hastily lodged in a ceiling crevice suddenly fell to the ground 3014 | -10/Mines | Discovered new exit (range 15) 3065 | -10/Mines | Discovered new exit (range 4) 3191 | -10/Mines | Met a Derelict who couldn't figure out how to use a Trap Extractor 3280 | -10/Mines | Discovered new exit (range 5) 3340 | -10/Mines | Deemed a non-threat by the Exiles lab entrance 3342 | -10/Mines | Discovered new exit (range 5) 3349 | -10/Mines | Entered Exiles 3388 | -10/Exiles | Met 8R-AWN 3415 | -10/Exiles | Met EX-HEX 3468 | -10/Exiles | Met EX-BIN 3487 | -10/Exiles | Aligned with FarCom system 3489 | -10/Exiles | Given EX-Vault access code 3535 | -10/Exiles | Opened EX-Vault 3546 | -10/Exiles | Found AWS/Gauss 3577 | -10/Exiles | Warned to stay clear of 0b10 Research branches 3711 | -10/Exiles | Met EX-DEC 3744 | -10/Exiles | Visited The Gauntlet 4044 | -10/Exiles | Discovered new exit (range 11) 4066 | -10/Exiles | Left Exiles lab with AWS/Gauss 4066 | -10/Exiles | Entered Mines 4303 | -9/Mines | Discovered new exit (range 4) 4321 | -9/Mines | Found the Drone Emporium 4338 | -9/Mines | Found Prototype Device 4369 | -9/Mines | Entered Materials 4369 | -8/Materials | Evolved 4 slots: Propulsion x1, Utility x3 4371 | -8/Materials | Identified Bomb Drone Bay 5011 | -8/Materials | Discovered new exit (range 3) 5541 | -8/Materials | Discovered new exit (range 11) 5880 | -8/Materials | Repaired Hrd. Heavy Armor Plating 5932 | -8/Materials | Discovered new exit (range 16) 6225 | -8/Materials | Entered Factory 6225 | -7/Factory | Evolved 2 slots: Propulsion x1, Utility x1 6256 | -7/Factory | Discovered new exit (range 43) 6279 | -7/Factory | Discovered new exit (range 83) 6387 | -7/Factory | Build established: Hacker-Mutant 7078 | -7/Factory | Cargo convoy interrupted 7153 | -7/Factory | Identified exit to Lower Caves 7253 | -7/Factory | Fabricated Arm. Wheel? 7437 | -7/Factory | AWS/Gauss suddenly broke down 8293 | -7/Factory | Lost 5 allies 8481 | -7/Factory | Repaired Minigun 9001 | -7/Factory | Fabricated Arm. Wheel? 10047 | -7/Factory | Build established: Scavenger-Mutant 10225 | -7/Factory | First assault squad dispatched 10275 | -7/Factory | System corruption reached 10% 10972 | -7/Factory | Build established: Hacker-Sprinter 11402 | -7/Factory | System Shield fried by hacking feedback 11520 | -7/Factory | Repaired Structural Scanner 12090 | -7/Factory | Entered another Factory area 12090 | -6/Factory | Evolved 2 slots: Propulsion x1, Utility x1 12233 | -6/Factory | Repaired Lyr. Light Armor Plating 12323 | -6/Factory | Discovered new exit (range 9) 13135 | -6/Factory | Identified exit to Lower Caves 13678 | -6/Factory | Repaired Broken Cesium-ion Thruster 13775 | -6/Factory | Identified exit to Factory 13843 | -6/Factory | Central database locked down 14025 | -6/Factory | Fabricated Cld. VTOL Module? 14423 | -6/Factory | Fabricated Cld. VTOL Module? 14446 | -6/Factory | Entered another Factory area 14446 | -5/Factory | Evolved 2 slots: Utility x2 14671 | -5/Factory | Discovered new exit (range 15) 15437 | -5/Factory | Fabricated Med. Storage Unit? 15491 | -5/Factory | Discovered new exit (range 6) 15657 | -5/Factory | Fabricated Imp. Hacking Suite (x1) 15968 | -5/Factory | Build established: Wizard-Sprinter 16107 | -5/Factory | Discovered new exit (range 8) 16143 | -5/Factory | Sucked down chute 16143 | -5/Factory | Entered Waste 16158 | -5/Waste | EMP discharged 16158 | -5/Waste | System corruption reached 10% 16160 | -5/Waste | Spotted C-40 Crusher 16161 | -5/Waste | Spotted C-40 Crusher 16161 | -5/Waste | Spotted C-40 Crusher 16168 | -5/Waste | Spotted C-40 Crusher 16169 | -5/Waste | Spotted C-40 Crusher 16173 | -5/Waste | Spotted C-40 Crusher 16174 | -5/Waste | Discovered new exit (range 14) 16190 | -5/Waste | Entered Factory 16239 | -5/Factory | Discovered new exit (range 11) 16295 | -5/Factory | Fabricated Imp. Hacking Suite? 16600 | -5/Factory | Repaired Rocket Launcher 16652 | -5/Factory | Discovered new exit (range 11) 16655 | -5/Factory | Identified exit to Upper Caves 16655 | -5/Factory | Identified exit to Extension 16655 | -5/Factory | Identified exit to Factory 16752 | -5/Factory | Lost 3 parts (2u1w) 16764 | -5/Factory | Destroyed 8 combat bots 17050 | -5/Factory | Central database locked down 17113 | -5/Factory | Repaired Mic. Nuclear Core 17678 | -5/Factory | Fabricated Cld. VTOL Module? 17805 | -5/Factory | Repaired Mic. Nuclear Core 17865 | -5/Factory | Build established: Wizard-Mutant 17974 | -5/Factory | Repaired Cld. VTOL Module 18065 | -5/Factory | Repaired Cld. VTOL Module 18105 | -5/Factory | Repaired Structural Scanner 18151 | -5/Factory | Repaired Powered Hammer 18223 | -5/Factory | Repaired Broken Adv. Melee Analysis Suite? 18248 | -5/Factory | Build established: Wizard-Sprinter 18490 | -5/Factory | Fabricated Rocket Launcher? 19412 | -5/Factory | Repaired Cld. VTOL Module 19436 | -5/Factory | Repaired Mic. Nuclear Core 19472 | -5/Factory | Repaired Cld. VTOL Module 19536 | -5/Factory | Repaired Mic. Nuclear Core 19790 | -5/Factory | Search patrols dispatched 20224 | -5/Factory | Entered another Factory area 20224 | -4/Factory | Evolved 2 slots: Propulsion x1, Utility x1 20280 | -4/Factory | Repaired Cld. VTOL Module 20300 | -4/Factory | Repaired Imp. Propulsion Shielding 20391 | -4/Factory | Identified exit to Research 20530 | -4/Factory | Build established: Hacker-Ninja 20716 | -4/Factory | Discovered new exit (range 5) 20952 | -4/Factory | Discovered new exit (range 21) 21185 | -4/Factory | Repaired Imp. Propulsion Shielding 21430 | -4/Factory | Spotted B-86 Titan 21473 | -4/Factory | Entered Research 21473 | -3/Research | Evolved 2 slots: Propulsion x1, Utility x1 21512 | -3/Research | Build established: Hacker-Scout 21527 | -3/Research | Fabricated Adv. Hacking Suite (x1) 21552 | -3/Research | Found Prototype Launcher 21552 | -3/Research | Identified Hellfire Missile Launcher 21594 | -3/Research | Spotted B-86 Titan 21636 | -3/Research | Identified exit to Research 21664 | -3/Research | Repaired Field Propulsion Array? 21704 | -3/Research | Discovered new exit (range 19) 21866 | -3/Research | Discovered new exit (range 17) 21918 | -3/Research | Build established: Wizard-Ninja 22309 | -3/Research | Self-destructed Last Messages --------------- 22195_ W-44 Eye sends out distress signal. 22196_ ALERT: All DSF locations entering lockdown mode. 22204_ Adv. Hacking Suite destroyed. 22223_ ALERT: Potential suspicious activity detected, Programmers report to Research Zone 6M. 22274_ Connecting with Terminal... >>Traps(Locate) Found 6 traps in 1 array: 6x Fusion Bomb Trap Map updated. 22282_ Door malfunctions. 22282_ W-44 Eye sends out distress signal. 22285_ System Shield destroyed. 22290_ Mic. Nuclear Core destroyed. 22290_ Structural Scanner destroyed. 22292_ Slug penetrates Wall. 22296_ Door malfunctions. 22298_ P-80 Master resets P-80 Master, system corruption cleaned. 22302_ Imp. Propulsion Shielding destroyed. 22304_ P-80 Master resets T-07 Excavator, system corruption cleaned. Map ----- +----------------------------------------------------+ | ???????????????????????????????????## # | | ???????????????????????????????????## # | | ???????????????????????????????????## + | | ???????????????????????????????????## # | | ????????????????????? # ##### # | | ????????????????????? ###/########### # | | ????????????????????? # # | | ????????????????????? # ##+###### | | ????????????????????? # ## ###### | | ????????????????????? + ## ##???? | | ????????????????????? # ###h##### ###### ##???? | | ?????????????# # # p ###### ##???? | | ?????????????########## # h ##??## ##???? | | ????????????? # ##??## ##???? | | ??????????????? # ##?### ###### | | ??????????????? # ##?###+###### | | ?????????????? # = ##?## | | ??????????????##^ C ######## p ##?## | | ################ ^ ######## p ##### """"" | | ################ # ######p######### """"" | | # #### # """"" | | # #### ! # | | # #### + | | """ """ """ # + pp != # | | """ """ """ # pp# != # | | """ """ """ # @# ! # | | ] ####### + S | | w g ######## " | | = ################ | | ##????########## | | ##?????????????? | | ####################### g #########?????????????? | | ####################### #########?????????????? | | ?????????## # ##????????????????????? | | ?????????## # ##????????????????????? | | ?????????## "" # ###############???????? | | ########### G" # ###############???????? | | ########### "" + # ##???????? | | # # # ##???????? | | # # # # """"" ##???????? | | # ###### ###### # """"" ##???????? | | # "" "" ###### # """"" ##???????? | | # ""T"" ?????## # = ##???????? | | # """ ??????## + == ##???????? | | ??????## # % " " ##???????? | | # ??????## ### < # "Y" ##???????? | | ########??????## ### # """ ##???????? | | ##### ??????## ### # ##???????? | | ??????????????## ######## ##???????? | | ?????????????? ######################???????? | +----------------------------------------------------+ Best States ------------- Heat Dissipation 46 Energy Generation 15 Energy Capacity 250 Matter Stores 300 Matter Capacity 300 Sight Range 22 Terrain Scan Range 16 Terrain Scan Density 10 Jamming Range 16 Cloak Strength 2 Armor Coverage 750 Resistance: EM 25 Propulsion Shielding 66 Evasion (%) 75 Recoil Reduction 2 Offensive Hacking 54 Defensive Hacking 24 Authchip Count 2 Item Schematics ----------------- Seismic Detector | -10/Materials | Hacked Lgt. Armor Plating | -8/Materials | Scanalyzed Hacking Suite | -8/Materials | Hacked Structural Scanner | -8/Materials | Scanalyzed Rocket Launcher | -8/Materials | Scanalyzed Imp. Heat Sink | -8/Materials | Scanalyzed Imp. Light Armor Plating | -8/Materials | Scanalyzed Arm. Wheel | -8/Materials | Hacked Cesium-ion Thruster | -7/Factory | Scanalyzed Med. Storage Unit | -7/Factory | Hacked Imp. Hacking Suite | -6/Factory | Hacked Adv. Heat Sink | -6/Factory | Hacked Imp. Cesium-ion Thruster | -6/Factory | Scanalyzed Cld. VTOL Module | -6/Factory | Scanalyzed Mic. Nuclear Core | -5/Factory | Scanalyzed EM Shield | -5/Factory | Scanalyzed Melee Analysis Suite | -5/Factory | Scanalyzed Adv. Hacking Suite | -5/Factory | Hacked Adv. Melee Analysis Suite | -5/Factory | Scanalyzed Imp. Propulsion Shielding | -5/Factory | Scanalyzed Imp. Transmission Jammer | -5/Factory | Scanalyzed Nuclear Pulse Array | -5/Factory | Scanalyzed Imp. Reaction Control System | -4/Factory | Scanalyzed Graphene Brace | -4/Factory | Scanalyzed System Shield | -4/Factory | Scanalyzed Hrd. Light Armor Plating | -4/Factory | Scanalyzed Impulse Thruster Array | -3/Research | Scanalyzed Robot Schematics ------------------ R-06 Scavenger | -6/Factory | Hacked Fabricated ------------ Arm. Wheel | x2 | -7/Factory Arm. Wheel | x2 | -7/Factory | Authchip Cld. VTOL Module | x1 | -6/Factory | Authchip Cld. VTOL Module | x1 | -6/Factory | Authchip Med. Storage Unit | x1 | -5/Factory | Authchip Imp. Hacking Suite | x1 | -5/Factory | Authchip Imp. Hacking Suite | x1 | -5/Factory | Authchip Cld. VTOL Module | x1 | -5/Factory | Authchip Rocket Launcher | x1 | -5/Factory | Authchip Adv. Hacking Suite | x1 | -3/Research | Authchip Repaired ---------- Lgt. Treads | 72% | -10/Materials Hrd. Heavy Armor Plating | 82% | -8/Materials Minigun | 19% | -7/Factory Structural Scanner | 10% | -7/Factory Lyr. Light Armor Plating | 74% | -6/Factory Cesium-ion Thruster | 44% | -6/Factory | Broken Rocket Launcher | 37% | -5/Factory Mic. Nuclear Core | 10% | -5/Factory Mic. Nuclear Core | 16% | -5/Factory Cld. VTOL Module | 48% | -5/Factory Cld. VTOL Module | 50% | -5/Factory Structural Scanner | 50% | -5/Factory Powered Hammer | 74% | -5/Factory Adv. Melee Analysis Suite | 99% | -5/Factory | Broken Cld. VTOL Module | 1% | -5/Factory Mic. Nuclear Core | 36% | -5/Factory Cld. VTOL Module | 73% | -5/Factory Mic. Nuclear Core | 66% | -5/Factory Cld. VTOL Module | 75% | -4/Factory Imp. Propulsion Shielding | 74% | -4/Factory Imp. Propulsion Shielding | 70% | -4/Factory Field Propulsion Array | 48% | -3/Research Alien Tech Used ----------------- None Achievements -------------- Production Line Release The Drones! Challenges ------------ None Game ------ Seed MyomerFieldBlaster Manual? 0 Play Time 09:14:11 Cumulative 132.2 hours Start 2025.09.10 @ 18:44:49 End 2025.09.14 @ 15:10:32 Sessions 25 Manual Loads 0 Difficulty Rogue Special Mode None Game No. 46 Rogue 46 Adventurer 0 Explorer 0 Win Type - Total 0 Types 0/0/0/0/0/0/0/0/0/0 Lore% 33 Gallery% 39 Achievement% 40 Wizard Run 0 Options --------- Layout 0 ASCII 1 Keyboard 1 Movement Arrows Keybinds 0 Fullscreen 1 Font 28/Smallcaps Map View 72x54 Zoom Use 0% Tactical HUD 1 Map Filters NONE Filters NONE Steam 1 RUN: c27ee668-c96f-47d3-8e71-f14811e0cf08